bitfinex/quotes_SOLUSD_20250717
["timestamp","ask_amount","ask_price","bid_price","bid_amount"]
[1752750583438,0.06,176.09,176.06,5.30718743]
[1752750584655,0.06,176.09,176.07,5.27718743]
[1752750586847,0.06,176.09,176.08,5.27718743]
[1752750588052,0.76,176.09,176.06,0.03]
[1752750588357,0.7,176.08,176.06,0.03]
[1752750588534,29.36,176.07,176.06,0.03]
[1752750590342,29.36,176.07,176.06,5.30718743]
[1752750590536,29.36,176.07,176.06,5.97718743]
[1752750591732,29.42,176.09,176.06,5.97718743]
[1752750592041,29.42,176.09,176.08,5.27718743]
[1752750592244,29.42,176.09,176.08,10.95642414]
[1752750592560,29.42,176.09,176.08,11.62642414]
[1752750593454,0.06,176.09,176.08,11.62642414]
[1752750600462,0.06,176.09,176.07,5.67950913]
[1752750600634,0.06,176.09,176.08,5.27718743]
[1752750600840,0.06,176.09,176.08,5.94718743]
[1752750601858,0.06,176.09,176.08,10.95642414]
[1752750602163,0.06,176.09,176.08,11.62642414]
[1752750602366,0.06,176.09,176.08,5.27718743]
[1752750602656,0.76,176.09,176.07,5.27718743]
[1752750602863,0.7,176.08,176.07,5.27718743]
[1752750603159,0.7,176.08,176.06,5.30718743]
[1752750603937,0.06,176.09,176.07,5.27718743]
[1752750604368,0.06,176.09,176.06,5.30718743]
[1752750604575,0.7,176.08,176.06,5.30718743]
[1752750605475,0.7,176.07,176.06,5.30718743]
[1752750606265,0.76,176.09,176.06,5.30718743]
[1752750606570,0.7,176.08,176.06,0.03]
[1752750606765,29.34,176.07,176.06,0.03]
[1752750607265,30.05,176.07,176.06,0.03]
[1752750608368,35.72955926,176.07,176.06,0.03]
[1752750610181,30.05,176.07,176.06,0.03]
[1752750611262,35.72955926,176.07,176.06,0.03]
[1752750613559,41.00674669,176.07,176.06,0.03]
[1752750615763,57.79143066,176.07,176.06,0.03]
[1752750615973,52.51424323,176.07,176.06,0.03]
[1752750616156,57.79143066,176.07,176.06,0.03]
[1752750618277,6.38955926,176.07,176.06,0.03]
[1752750618574,35.70955926,176.07,176.06,0.03]
[1752750619671,40.98674669,176.07,176.06,0.03]
[1752750619972,57.77143066,176.07,176.06,0.03]
[1752750620272,22.46456582,176.06,176.05,0.03]
[1752750620459,28.45175325,176.06,176.05,0.03]
[1752750621157,23.17456582,176.06,176.05,0.03]
[1752750621480,28.45175325,176.06,176.05,0.03]
[1752750621681,5.6795789,176.07,176.05,0.7]
[1752750621972,29.32,176.06,176.05,0.03]
[1752750622181,30.03,176.06,176.05,0.03]
[1752750622477,40.98706928,176.06,176.05,0.03]
[1752750624465,35.70988185,176.06,176.05,0.03]
[1752750624865,29.32,176.06,176.05,0.03]
[1752750625172,35.70988185,176.06,176.05,0.03]
[1752750627885,52.49456582,176.06,176.05,0.03]
[1752750628075,57.77175325,176.06,176.05,0.03]
[1752750631875,35.70988185,176.06,176.05,0.03]
[1752750632381,29.32,176.06,176.05,0.03]
[1752750633589,29.32,176.06,176.05,5.97718743]
[1752750634170,0.06,176.09,176.05,5.97718743]
[1752750634474,0.06,176.09,176.08,5.27718743]
[1752750634676,29.38,176.09,176.08,5.27718743]
[1752750634865,29.38,176.09,176.06,0.67]
[1752750635070,30.09,176.09,176.06,5.27718743]
[1752750635384,29.38,176.09,176.06,5.27718743]
[1752750636291,0.71,176.08,176.05,0.03]
[1752750636590,29.32,176.07,176.05,0.03]
[1752750636767,30.03,176.07,176.05,0.03]
[1752750637091,0.71,176.06,176.05,0.03]
[1752750637385,11.66706928,176.06,176.05,0.03]
[1752750639390,6.38988185,176.06,176.05,0.03]
[1752750641099,11.66706928,176.06,176.05,0.03]
[1752750645595,6.38988185,176.06,176.05,0.03]
[1752750645995,5.67923671,176.08,176.05,0.03]
[1752750646291,29.3,176.08,176.05,0.74]
[1752750646488,29.3,176.08,176.06,5.27718743]
[1752750647001,34.97935806,176.08,176.06,5.27718743]
[1752750647209,0.69,176.07,176.05,0.03]
[1752750647389,29.3,176.08,176.06,5.98718743]
[1752750647592,29.3,176.08,176.07,5.98718743]
[1752750647894,29.3,176.08,176.07,0.71]
[1752750648105,29.3,176.08,176.07,5.98718743]
[1752750650587,0.06,176.09,176.07,11.66674669]
[1752750650794,0.06,176.09,176.08,5.98718743]
[1752750651589,0.06,176.09,176.08,11.66642414]
[1752750652109,0.06,176.09,176.08,5.98718743]
[1752750652614,0.06,176.09,176.08,5.27718743]
[1752750652796,0.06,176.09,176.08,5.98718743]
[1752750654208,0.06,176.09,176.08,11.66642414]
[1752750657899,0.06,176.09,176.08,6.38923671]
[1752750658109,0.06,176.09,176.08,11.66642414]
[1752750660008,0.06,176.09,176.08,5.27718743]
[1752750661905,0.06,176.09,176.08,5.98718743]
[1752750662401,0.06,176.09,176.08,5.27718743]
[1752750662796,0.06,176.09,176.08,5.98718743]
[1752750665606,0.06,176.09,176.08,5.27718743]
[1752750666001,0.06,176.09,176.08,11.66642414]
[1752750666203,0.06,176.09,176.08,40.94642414]
[1752750667422,0.06,176.09,176.08,86.20829554]
[1752750667620,0.06,176.09,176.08,80.93110811]
[1752750669021,0.06,176.09,176.08,29.58923671]
[1752750669205,0.06,176.09,176.08,28.47718743]
[1752750669608,0.06,176.09,176.08,29.18718743]
[1752750669905,0.06,176.09,176.08,53.17]
[1752750670229,0.06,176.09,176.08,58.44718743]
[1752750670545,0.06,176.09,176.08,80.91110811]
[1752750674325,0.06,176.09,176.08,63.41642414]
[1752750674525,0.06,176.09,176.08,34.15642414]
[1752750674721,0.06,176.09,176.08,23.2]
[1752750674934,0.06,176.09,176.08,28.47718743]
[1752750675755,0.06,176.09,176.08,34.15642414]
[1752750675949,0.06,176.09,176.08,34.86642414]
[1752750676154,0.06,176.09,176.08,29.18718743]
[1752750676340,0.06,176.09,176.08,28.47718743]
[1752750678057,0.06,176.09,176.08,5.98718743]
[1752750678458,0.06,176.09,176.08,5.27718743]
[1752750679631,0.06,176.09,176.08,10.95642414]
[1752750681054,0.06,176.09,176.08,11.66642414]
[1752750681750,0.06,176.09,176.08,5.98718743]
[1752750682941,0.06,176.09,176.08,5.27718743]
[1752750683651,5.67923671,176.08,176.07,26.0]
[1752750683849,0.69,176.08,176.07,26.0]
[1752750684542,0.69,176.08,176.06,26.0]
[1752750684751,0.06,176.09,176.07,5.27718743]
[1752750684946,0.06,176.09,176.07,5.98718743]
[1752750685156,0.06,176.09,176.07,5.27718743]
[1752750686054,0.69,176.08,176.05,26.03]
[1752750686255,5.27718743,176.06,176.05,0.03]
[1752750686756,5.96718743,176.06,176.05,0.03]
[1752750688254,6.36988185,176.06,176.05,0.03]
[1752750688644,0.69,176.06,176.05,0.03]
[1752750688860,5.67958807,176.07,176.05,0.03]
[1752750689057,0.69,176.06,176.05,0.03]
[1752750689952,5.67958807,176.07,176.05,0.03]
[1752750690352,6.36958807,176.07,176.05,0.03]
[1752750691269,5.27718743,176.08,176.05,0.03]
[1752750691270,5.67935446,176.08,176.05,5.30718743]
[1752750691467,6.36935446,176.08,176.05,5.30718743]
[1752750691645,6.36935446,176.08,176.05,0.03]
[1752750691966,5.73901623,176.09,176.05,5.30718743]
[1752750692166,6.42901623,176.09,176.05,5.30718743]
[1752750692746,6.42901623,176.09,176.05,5.27718743]
[1752750693260,6.36932604,176.08,176.04,31.27718743]
[1752750693569,0.69,176.07,176.04,31.27718743]
[1752750694345,5.67932604,176.08,176.04,31.27718743]
[1752750694642,0.06,176.09,176.07,5.27718743]
[1752750694847,0.06,176.09,176.08,5.27718743]
[1752750695844,0.06,176.09,176.07,5.27718743]
[1752750696070,0.69,176.08,176.05,5.27718743]
[1752750696970,0.06,176.09,176.07,5.27718743]
[1752750697845,0.77,176.09,176.06,5.27718743]
[1752750698064,0.77,176.09,176.05,5.27718743]
[1752750698278,0.71,176.08,176.05,5.27718743]
[1752750700151,0.06,176.09,176.06,5.27718743]
[1752750700351,0.06,176.09,176.07,5.27718743]
[1752750700551,0.06,176.09,176.08,5.27718743]
[1752750701174,0.06,176.09,176.08,5.92718743]
[1752750702186,0.77,176.09,176.04,49.2]
[1752750702354,5.27718743,176.08,176.04,26.0]
[1752750702561,0.71,176.07,176.04,26.0]
[1752750702765,0.71,176.06,176.03,5.27718743]
[1752750702960,0.71,176.08,176.04,5.27718743]
[1752750703372,0.71,176.07,176.03,5.27718743]
[1752750703554,5.73891952,176.09,176.04,5.27718743]
[1752750703754,0.06,176.09,176.08,26.0]
[1752750704454,6.44891419,176.09,176.02,28.98111411]
[1752750704759,6.44891419,176.09,176.05,5.27718743]
[1752750704954,0.71,176.08,176.05,5.27718743]
[1752750705562,0.06,176.09,176.06,5.27718743]
[1752750705762,0.06,176.09,176.06,5.92718743]
[1752750706757,0.06,176.09,176.07,5.27718743]
[1752750706956,0.06,176.09,176.08,5.27718743]
[1752750707157,0.06,176.09,176.07,5.27718743]
[1752750708677,0.06,176.09,176.06,5.67977964]
[1752750708889,0.06,176.09,176.07,5.27718743]
[1752750709877,0.06,176.09,176.08,5.27718743]
[1752750710370,0.06,176.09,176.08,5.92718743]
[1752750711090,0.06,176.09,176.08,31.92718743]
[1752750711784,0.06,176.09,176.08,37.60642414]
[1752750716866,0.06,176.09,176.08,34.80642414]
[1752750717071,0.06,176.15,176.11,26.0]
[1752750717378,0.06,176.15,176.14,5.27718743]
[1752750717789,0.06,176.15,176.14,5.92718743]
[1752750717990,0.06,176.15,176.14,22.7118714]
[1752750719173,0.06,176.15,176.14,28.38917354]
[1752750719372,0.06,176.15,176.14,51.58917354]
[1752750719887,0.06,176.15,176.14,59.06633436]
[1752750720077,0.06,176.17,176.15,16.78468397]
[1752750720271,0.06,176.17,176.16,51.2818714]
[1752750720480,0.06,176.17,176.16,51.9318714]
[1752750720998,0.06,176.17,176.16,22.7118714]
[1752750721168,0.06,176.17,176.16,5.27718743]
[1752750721368,0.77,176.17,176.14,5.27718743]
[1752750721575,0.71,176.16,176.14,5.27718743]
[1752750721773,0.71,176.16,176.14,31.27718743]
[1752750721976,0.06,176.17,176.14,26.0]
[1752750722294,0.71,176.15,176.12,5.27718743]
[1752750722511,0.71,176.15,176.14,26.0]
[1752750723568,0.71,176.15,176.1,31.67858868]
[1752750723787,0.71,176.15,176.1,5.27718743]
[1752750723988,0.06,176.17,176.14,5.27718743]
[1752750724179,0.06,176.17,176.16,5.27718743]
[1752750724365,0.71,176.16,176.13,5.27718743]
[1752750724570,0.71,176.15,176.12,26.0]
[1752750724790,0.71,176.14,176.13,26.0]
[1752750724990,0.71,176.14,176.11,5.27718743]
[1752750725800,0.71,176.14,176.13,26.0]
[1752750726097,0.71,176.13,176.12,26.0]
[1752750726674,5.98718743,176.13,176.06,5.67978143]
[1752750726874,5.98718743,176.12,176.06,5.27718743]
[1752750727097,12.19241897,176.15,176.05,6.36010988]
[1752750727098,5.93718743,176.11,176.05,5.30718743]
[1752750727313,0.66,176.1,176.05,5.30718743]
[1752750727478,0.66,176.1,176.05,26.03]
[1752750727479,5.93718743,176.1,176.05,26.03]
[1752750727678,0.66,176.09,176.05,26.03]
[1752750728079,0.66,176.08,176.07,26.0]
[1752750729187,0.66,176.08,176.06,26.0]
[1752750729488,0.66,176.08,176.07,26.0]
[1752750729880,0.66,176.08,176.05,31.30718743]
[1752750730101,0.66,176.08,176.05,36.9873292]
[1752750730285,10.95552932,176.11,176.05,31.30718743]
[1752750730286,0.66,176.1,176.05,31.30718743]
[1752750730487,0.66,176.09,176.05,36.98725479]
[1752750730989,0.66,176.09,176.05,31.30718743]
[1752750731192,10.95552932,176.11,176.06,5.27718743]
[1752750731193,6.33834189,176.11,176.06,5.27718743]
[1752750731386,0.66,176.1,176.06,5.27718743]
[1752750731789,0.66,176.09,176.06,5.27718743]
[1752750732819,6.33834189,176.11,176.06,5.27718743]
[1752750733010,0.66,176.1,176.06,5.27718743]
[1752750733731,7.99081954,176.13,176.08,5.27718743]
[1752750733897,0.66,176.12,176.08,5.27718743]
[1752750734097,0.66,176.11,176.08,5.27718743]
[1752750734303,0.66,176.13,176.09,5.27718743]
[1752750735097,6.33767929,176.13,176.09,5.27718743]
[1752750735298,0.66,176.12,176.09,5.27718743]
[1752750735811,0.06,176.17,176.11,5.27718743]
[1752750736132,0.06,176.17,176.16,5.27718743]
[1752750736295,0.72,176.17,176.14,5.27718743]
[1752750736498,0.66,176.16,176.13,5.27718743]
[1752750736698,0.66,176.16,176.15,5.27718743]
[1752750736999,0.06,176.17,176.15,8.43418685]
[1752750737816,0.66,176.16,176.15,8.43418685]
[1752750738126,0.66,176.16,176.12,5.67784825]
[1752750738321,0.66,176.16,176.15,8.43418685]
[1752750740008,0.06,176.17,176.15,8.43418685]
[1752750740324,6.39636133,176.17,176.15,8.43418685]
[1752750740509,0.72,176.17,176.14,8.43418685]
[1752750740711,0.72,176.17,176.15,8.43418685]
[1752750741116,0.72,176.17,176.16,8.43418685]
[1752750741117,0.06,176.17,176.16,8.43418685]
[1752750741538,0.72,176.17,176.13,23.2]
[1752750741709,0.06,176.17,176.15,8.43418685]
[1752750742429,0.06,176.17,176.16,8.43418685]
[1752750742622,0.06,176.17,176.15,0.66]
[1752750742927,0.06,176.17,176.16,8.43418685]
[1752750743506,0.06,176.17,176.16,14.77084443]
[1752750747034,0.06,176.17,176.16,40.77084443]
[1752750748225,0.06,176.17,176.16,31.5555284]
[1752750748536,0.06,176.17,176.16,44.5386419]
[1752750749544,0.06,176.17,176.16,36.10445505]
[1752750749717,0.06,176.17,176.16,69.97084443]
[1752750749907,0.06,176.17,176.16,52.40503128]
[1752750750329,0.06,176.17,176.16,57.00297177]
[1752750751624,0.2,176.24,176.2,26.0]
[1752750751827,0.2,176.24,176.23,8.43418685]
[1752750754822,0.86,176.24,176.2,49.2]
[1752750755043,0.66,176.23,176.21,8.43418685]
[1752750755332,0.66,176.23,176.2,54.87536761]
[1752750755719,0.66,176.23,176.21,8.43418685]
[1752750756124,0.66,176.23,176.22,8.43418685]
[1752750756521,0.2,176.24,176.22,8.43418685]
[1752750756836,0.2,176.24,176.23,8.43418685]
[1752750757042,0.7,176.23,176.21,5.26676093]
[1752750757812,0.2,176.24,176.22,5.26676093]
[1752750758016,0.2,176.24,176.23,5.26676093]
[1752750758423,0.9,176.24,176.23,5.26676093]
[1752750758739,0.9,176.24,176.22,5.26676093]
[1752750759033,0.7,176.23,176.21,5.26676093]
[1752750759234,5.87414558,176.24,176.21,5.26676093]
[1752750759626,0.7,176.23,176.21,5.26676093]
[1752750760642,0.9,176.24,176.22,5.26676093]
[1752750761032,0.2,176.24,176.23,5.26676093]
[1752750762826,0.9,176.24,176.23,5.26676093]
[1752750763018,0.9,176.24,176.22,5.26676093]
[1752750763218,0.2,176.24,176.22,5.26676093]
[1752750763432,0.9,176.24,176.23,5.26676093]
[1752750763622,0.2,176.24,176.23,5.26676093]
[1752750763822,0.9,176.24,176.23,5.26676093]
[1752750764420,0.2,176.24,176.23,5.26676093]
[1752750765036,0.2,176.24,176.23,5.98676093]
[1752750765247,0.2,176.24,176.23,5.26676093]
[1752750765554,0.2,176.24,176.23,10.94116369]
[1752750765840,0.2,176.24,176.23,11.66116369]
[1752750766217,0.2,176.24,176.21,6.39497558]
[1752750766415,0.2,176.24,176.23,5.26676093]
[1752750767645,0.2,176.24,176.22,5.26676093]
[1752750767852,0.2,176.24,176.21,28.87497558]
[1752750768144,0.9,176.24,176.23,5.26676093]
[1752750768352,0.2,176.24,176.23,5.26676093]
[1752750769923,0.9,176.24,176.22,5.26676093]
[1752750771245,0.2,176.24,176.23,5.26676093]
[1752750772318,6.57414371,176.24,176.21,23.2]
[1752750772523,0.7,176.23,176.21,23.2]
[1752750772719,5.96676093,176.23,176.21,23.2]
[1752750772944,0.7,176.22,176.18,31.26676093]
[1752750773140,11.14090464,176.24,176.18,31.26676093]
[1752750773331,11.14090464,176.24,176.18,31.98676093]
[1752750773332,0.7,176.22,176.18,31.98676093]
[1752750773534,0.7,176.22,176.19,5.26676093]
[1752750774056,0.2,176.24,176.22,26.0]
[1752750774348,0.2,176.24,176.23,5.26676093]
[1752750775142,0.2,176.24,176.23,5.98676093]
[1752750775626,0.2,176.24,176.23,5.26676093]
[1752750776531,0.2,176.24,176.23,10.94116369]
[1752750777962,0.2,176.24,176.23,11.66116369]
[1752750780632,0.2,176.24,176.23,6.39440276]
[1752750780837,0.2,176.24,176.23,11.66116369]
[1752750781143,0.2,176.24,176.23,0.72]
[1752750781332,0.2,176.24,176.23,5.26676093]
[1752750783438,0.2,176.24,176.23,10.94116369]
[1752750783751,0.2,176.24,176.23,11.66116369]
[1752750783952,0.2,176.24,176.23,5.98676093]
[1752750784152,0.2,176.24,176.23,5.26676093]
[1752750784761,0.2,176.24,176.22,60.83462177]
[1752750784963,0.2,176.24,176.23,5.26676093]
[1752750785846,0.2,176.24,176.23,11.66116369]
[1752750786276,0.2,176.24,176.23,10.94116369]
[1752750786972,0.2,176.24,176.23,5.26676093]
[1752750787459,0.2,176.24,176.23,11.59116369]
[1752750787851,0.2,176.24,176.23,34.79116369]
[1752750789165,0.2,176.24,176.23,63.95116369]
[1752750798279,0.2,176.24,176.23,63.30116369]
[1752750798690,0.2,176.24,176.23,57.62676093]
[1752750798990,0.87,176.24,176.23,31.26676093]
[1752750799888,0.2,176.24,176.23,31.26676093]
[1752750801284,0.2,176.24,176.23,36.94116369]
[1752750801768,0.2,176.24,176.23,31.26676093]
[1752750802176,0.87,176.24,176.23,31.26676093]
[1752750802684,0.87,176.24,176.23,26.0]
[1752750802874,0.87,176.24,176.22,5.26676093]
[1752750803070,0.87,176.24,176.19,5.26676093]
[1752750803071,0.67,176.23,176.19,5.26676093]
[1752750803288,0.67,176.23,176.18,5.26676093]
[1752750803583,0.67,176.23,176.2,26.0]
[1752750803892,0.67,176.23,176.2,5.26676093]
[1752750804083,0.67,176.23,176.21,5.26676093]
[1752750804588,0.2,176.24,176.22,5.26676093]
[1752750804888,0.2,176.24,176.23,5.26676093]
[1752750805779,0.87,176.24,176.23,5.26676093]
[1752750806177,0.2,176.24,176.23,5.26676093]
[1752750808600,0.2,176.24,176.22,60.83460415]
[1752750808801,0.2,176.24,176.23,5.91676093]
[1752750809276,0.2,176.24,176.23,5.26676093]
[1752750813597,0.2,176.24,176.23,40.73116369]
[1752750813788,0.2,176.24,176.23,34.40676093]
[1752750814190,0.2,176.24,176.23,5.26676093]
[1752750816187,0.87,176.24,176.23,5.26676093]
[1752750816985,0.2,176.24,176.23,5.26676093]
[1752750824502,0.2,176.24,176.23,10.94116369]
[1752750824681,0.2,176.24,176.23,11.64116369]
[1752750825204,0.2,176.24,176.23,28.42584766]
[1752750825400,0.2,176.25,176.24,16.78468397]
[1752750825577,0.2,176.27,176.26,42.78468397]
[1752750825783,0.2,176.27,176.26,82.86488186]
[1752750826000,0.2,176.27,176.26,83.56488186]
[1752750827388,0.2,176.27,176.26,36.94019789]
[1752750827587,0.2,176.27,176.26,66.08019789]
[1752750833615,0.2,176.27,176.26,66.78019789]
[1752750834609,0.2,176.27,176.26,66.76019789]
[1752750835225,0.06,176.29,176.27,16.78468397]
[1752750835414,0.06,176.29,176.28,39.65352186]
[1752750835595,0.06,176.29,176.28,35.08676093]
[1752750837116,0.06,176.29,176.28,40.75955421]
[1752750840301,0.06,176.29,176.28,40.05955421]
[1752750840604,0.06,176.29,176.28,40.75955421]
[1752750841122,0.06,176.29,176.28,5.67279328]
[1752750841326,0.06,176.29,176.28,40.05955421]
[1752750842501,0.06,176.29,176.28,40.75955421]
[1752750842696,0.06,176.29,176.28,57.54423818]
[1752750842930,0.2,176.32,176.31,26.0]
[1752750843221,0.2,176.32,176.31,77.1714449]
[1752750843606,0.2,176.32,176.31,78.4386277]
[1752750844008,0.2,176.35,176.32,16.78468397]
[1752750844225,0.2,176.35,176.34,10.93762403]
[1752750845005,0.88,176.35,176.34,5.26676093]
[1752750845324,0.88,176.35,176.33,60.38676093]
[1752750845625,0.68,176.34,176.33,55.12]
[1752750845840,0.68,176.34,176.33,60.38676093]
[1752750846006,0.2,176.35,176.33,60.38676093]
[1752750846313,0.2,176.35,176.34,5.26676093]
[1752750846902,0.88,176.35,176.34,5.26676093]
[1752750847237,0.88,176.35,176.34,10.93762403]
[1752750847932,0.88,176.35,176.34,5.26676093]
[1752750848431,0.88,176.35,176.33,31.67110597]
[1752750848726,0.2,176.35,176.31,31.26676093]
[1752750849226,0.66,176.34,176.31,5.26676093]
[1752750849522,0.66,176.33,176.31,31.26676093]
[1752750849744,0.66,176.33,176.31,36.93849336]
[1752750850031,0.66,176.33,176.32,5.26676093]
[1752750851532,0.66,176.33,176.31,31.26676093]
[1752750851727,0.66,176.33,176.31,36.93854902]
[1752750852107,0.66,176.33,176.32,5.26676093]
[1752750853737,0.86,176.35,176.32,5.26676093]
[1752750853927,0.66,176.34,176.32,5.26676093]
[1752750854124,0.2,176.35,176.32,5.26676093]
[1752750854317,0.66,176.34,176.32,5.26676093]
[1752750854517,0.66,176.33,176.32,5.26676093]
[1752750855412,0.66,176.33,176.31,31.26676093]
[1752750855612,0.66,176.32,176.31,31.26676093]
[1752750856019,0.66,176.34,176.31,31.26676093]
[1752750856237,0.66,176.33,176.32,5.26676093]
[1752750856737,0.86,176.35,176.32,5.26676093]
[1752750857038,0.66,176.34,176.32,5.26676093]
[1752750857331,0.2,176.35,176.33,5.26676093]
[1752750857539,0.2,176.35,176.34,31.26676093]
[1752750858816,0.2,176.35,176.34,36.93762403]
[1752750860625,0.2,176.35,176.34,37.64762403]
[1752750861222,0.2,176.35,176.34,11.64762403]
[1752750861655,0.2,176.35,176.34,28.432308]
[1752750862246,0.2,176.35,176.34,33.04308031]
[1752750864821,0.06,176.36,176.35,16.78468397]
[1752750865048,0.06,176.36,176.35,52.42849905]
[1752750866434,0.06,176.36,176.35,58.09904058]
[1752750868541,0.2,176.39,176.38,26.0]
[1752750868746,0.2,176.39,176.38,60.34676093]
[1752750868928,0.2,176.39,176.38,61.05676093]
[1752750869562,0.2,176.39,176.38,83.51102194]
[1752750870022,0.06,176.4,176.39,16.78468397]
[1752750870228,0.06,176.4,176.39,28.02820583]
[1752750870950,0.06,176.4,176.39,25.62630767]
[1752750871535,0.06,176.4,176.39,31.29556329]
[1752750873334,0.06,176.4,176.39,36.56232422]
[1752750874057,1e-08,176.4,176.39,36.56232422]
[1752750874261,0.2,176.42,176.41,42.78468397]
[1752750874461,0.2,176.42,176.41,77.1314449]
[1752750874642,0.2,176.42,176.41,77.8414449]
[1752750876055,0.2,176.42,176.41,83.51005779]
[1752750877056,0.06,176.44,176.41,83.51005779]
[1752750877237,0.06,176.44,176.42,5.97676093]
[1752750878058,0.06,176.44,176.42,11.6450525]
[1752750880263,0.06,176.44,176.42,10.9350525]
[1752750880555,0.76,176.44,176.42,10.9350525]
[1752750880854,0.76,176.43,176.39,2.86486277]
[1752750881160,0.76,176.43,176.41,5.26676093]
[1752750881457,0.76,176.43,176.42,26.0]
[1752750881841,0.76,176.43,176.4,5.26676093]
[1752750882041,0.76,176.43,176.42,26.0]
[1752750885452,0.06,176.43,176.42,36.9350525]
[1752750885844,0.76,176.43,176.42,31.26676093]
[1752750886145,0.76,176.43,176.42,26.0]
[1752750886351,0.76,176.43,176.42,31.26676093]
[1752750886950,0.06,176.43,176.42,31.26676093]
[1752750887350,0.76,176.43,176.42,31.26676093]
[1752750887555,0.06,176.43,176.42,36.9350525]
[1752750890356,0.76,176.43,176.42,36.9350525]
[1752750890865,0.06,176.43,176.42,36.9350525]
[1752750891262,0.06,176.43,176.42,60.1350525]
[1752750891468,0.06,176.43,176.42,89.1950525]
[1752750892755,0.76,176.43,176.42,89.1950525]
[1752750893073,0.06,176.43,176.42,89.1950525]
[1752750893315,0.06,176.43,176.42,89.9050525]
[1752750894669,0.06,176.43,176.42,89.1950525]
[1752750896545,0.06,176.43,176.42,78.26]
[1752750896770,0.76,176.43,176.42,78.26]
[1752750896949,0.76,176.43,176.42,54.46676093]
[1752750897165,0.76,176.43,176.42,49.2]
[1752750897762,0.76,176.43,176.42,54.46676093]
[1752750898578,0.76,176.43,176.42,49.2]
[1752750899873,0.26,176.43,176.42,49.2]
[1752750900064,1.8293,176.43,176.42,23.2]
[1752750900667,7.49727029,176.43,176.42,23.2]
[1752750901092,1.8293,176.43,176.42,23.2]
[1752750901299,0.06,176.44,176.42,28.46676093]
[1752750901477,0.06,176.44,176.42,5.26676093]
[1752750901791,0.06,176.44,176.43,31.26676093]
[1752750901984,0.76,176.44,176.43,31.26676093]
[1752750902196,0.06,176.44,176.43,83.46941519]
[1752750902500,0.1,176.47,176.46,26.0]
[1752750902675,0.1,176.47,176.46,51.0914449]
[1752750902873,0.06,176.51,176.5,26.0]
[1752750903080,1.5427,176.57,176.5,26.0]
[1752750903081,1.5427,176.57,176.5,65.57352186]
[1752750903281,1.5427,176.57,176.56,5.26676093]
[1752750903484,2.2427,176.57,176.54,29.04]
[1752750903694,1.5427,176.57,176.56,5.26676093]
[1752750903896,0.1,176.61,176.56,34.30676093]
[1752750904085,0.1,176.61,176.59,5.26676093]
[1752750904395,0.7,176.6,176.57,5.66326238]
[1752750904582,0.1,176.61,176.59,5.26676093]
[1752750904783,0.1,176.61,176.6,5.26676093]
[1752750904997,0.1,176.61,176.56,60.70374176]
[1752750905171,0.7,176.6,176.58,5.26676093]
[1752750905369,0.7,176.6,176.56,26.0]
[1752750906111,0.7,176.6,176.57,5.26676093]
[1752750906476,6.36263813,176.6,176.57,5.26676093]
[1752750906688,0.7,176.59,176.57,5.26676093]
[1752750906884,0.7,176.58,176.57,5.26676093]
[1752750907193,0.7,176.58,176.56,31.26676093]
[1752750907372,0.72,176.57,176.56,31.26676093]
[1752750907568,0.72,176.59,176.56,36.93047482]